bitfinex-derivatives/quotes_ETHF0:USTF0_20240923
["timestamp","ask_amount","ask_price","bid_price","bid_amount"]
[1727078544886,0.3779,2646.3,2646.2,0.98681795]
[1727078545087,2.06,2646.4,2646.1,0.98681795]
[1727078545385,2.06,2646.4,2646.2,40.8]
[1727078545686,0.37789,2646.4,2646.2,40.8]
[1727078545987,0.3779,2646.3,2646.2,40.8]
[1727078546786,0.37793,2646.1,2646.0,3.2078]
[1727078547087,0.37794,2646.0,2645.9,0.7782]
[1727078547285,0.37795,2646.0,2645.7,0.98681795]
[1727078547487,0.37796,2645.9,2645.8,0.3846]
[1727078547695,0.37796,2645.9,2645.8,41.1846]
[1727078548383,0.37797,2645.8,2645.7,0.3827]
[1727078548577,0.378,2645.7,2645.5,0.3846]
[1727078548886,2.06,2646.0,2645.5,0.3846]
[1727078549089,0.378,2645.6,2645.5,0.3846]
[1727078550287,6.60653,2646.1,2645.5,0.3846]
[1727078550578,0.37799,2645.7,2645.5,0.3846]
[1727078550792,0.37798,2645.8,2645.5,0.3846]
[1727078550988,0.3724,2646.0,2645.5,0.3846]
[1727078551180,3.00491,2645.9,2645.3,3.2078]
[1727078551385,3.2078,2645.8,2645.3,3.2078]
[1727078551593,0.37802,2645.5,2645.3,3.2078]
[1727078553786,0.37803,2645.4,2645.3,3.2078]
[1727078554387,3.5799,2645.8,2645.3,3.2078]
[1727078554388,0.37802,2645.5,2645.3,3.2078]
[1727078555091,0.37802,2645.5,2645.4,40.8]
[1727078556385,0.37803,2645.4,2645.3,3.2078]
[1727078557287,0.37806,2645.2,2645.1,0.7632]
[1727078558090,0.37806,2645.2,2645.1,0.3933]
[1727078559998,0.37809,2645.0,2644.9,0.7738]
[1727078560890,0.37809,2645.0,2644.9,0.3869]
[1727078561689,1.14888,2645.1,2644.9,0.3869]
[1727078561898,0.385,2645.1,2644.9,0.3869]
[1727078562191,3.2078,2645.2,2644.9,0.3869]
[1727078562396,3.2078,2645.2,2644.9,0.76499]
[1727078563087,0.74942,2645.5,2645.1,0.37807]
[1727078563283,0.3714,2645.5,2645.2,41.1651]
[1727078563487,0.3714,2645.5,2645.3,0.3913]
[1727078563696,0.74943,2645.5,2645.3,0.3913]
[1727078564791,0.3714,2645.5,2645.3,0.3913]
[1727078564996,0.3714,2645.5,2645.4,0.3729]
[1727078565202,0.76839,2645.7,2645.4,0.3729]
[1727078565498,0.37801,2645.6,2645.4,0.3729]
[1727078565808,0.37801,2645.5,2645.4,0.3729]
[1727078566391,0.37803,2645.4,2645.3,0.3913]
[1727078566799,0.37803,2645.4,2645.2,40.8]
[1727078566800,0.37804,2645.3,2645.2,40.8]
[1727078567294,0.76354,2645.3,2645.2,40.8]
[1727078568006,4.54354,2645.3,2645.2,40.8]
[1727078568493,0.37807,2645.2,2644.9,1.4941]
[1727078568697,0.3799,2645.2,2644.9,1.116]
[1727078568896,0.37809,2645.0,2644.9,1.116]
[1727078569295,0.37809,2645.0,2644.9,0.7415]
[1727078571302,0.37809,2645.0,2644.9,0.3686]
[1727078571504,0.3781,2644.9,2644.8,3.2078]
[1727078574409,0.37814,2644.6,2644.5,41.5505]
[1727078574599,2.06,2644.6,2644.1,3.2078]
[1727078574801,0.3782,2644.2,2644.1,3.2078]
[1727078575001,0.3782,2644.2,2644.0,1.136]
[1727078575507,0.3698,2644.3,2644.0,1.136]
[1727078575714,0.37821,2644.1,2644.0,1.136]
[1727078576400,0.37821,2644.1,2644.0,0.7559]
[1727078576604,0.74799,2644.3,2644.0,0.7559]
[1727078577212,3.94409923,2644.8,2644.1,3.58601]
[1727078577213,6.776,2644.6,2644.1,3.58601]
[1727078577410,0.37817,2644.5,2644.1,3.58601]
[1727078577604,0.37818,2644.4,2644.0,1.52822]
[1727078577911,0.37819,2644.3,2644.0,1.15]
[1727078578108,0.37818,2644.4,2644.0,1.52822]
[1727078578310,0.37816,2644.5,2644.1,0.37821]
[1727078578506,7.1513,2644.6,2644.3,0.37818]
[1727078578507,2.06,2644.6,2644.3,0.37818]
[1727078578715,2.06,2644.6,2644.0,1.15]
[1727078578716,4.32221923,2644.8,2644.4,0.37816]
[1727078578902,0.3753,2644.9,2644.5,1.51155]
[1727078579098,0.75341,2644.9,2644.5,1.51155]
[1727078579308,0.37811,2644.8,2644.5,1.1334]
[1727078579502,0.3753,2644.9,2644.5,1.1334]
[1727078579702,0.37814,2644.6,2644.5,1.1334]
[1727078580109,0.37814,2644.6,2643.9,2.06]
[1727078580110,0.37816,2644.5,2644.1,0.37821]
[1727078580305,0.37816,2644.5,2644.2,3.5784]
[1727078580504,2.06,2644.8,2644.2,0.3706]
[1727078580704,3.2078,2644.5,2644.3,40.8]
[1727078580907,0.37817,2644.4,2644.3,40.8]
[1727078582016,5.8416,2644.4,2644.0,0.3749]
[1727078582316,2.43821,2644.1,2644.0,0.3749]
[1727078582709,2.43821,2644.1,2642.8,2.46788318]
[1727078582710,3.2078,2643.8,2642.6,40.8]
[1727078582903,5.2678,2642.7,2642.5,0.3868]
[1727078583116,2.06,2642.9,2642.5,0.3868]
[1727078583304,0.37838,2643.0,2642.5,0.76524]
[1727078583603,3.58614,2643.2,2642.6,3.58622]
[1727078584005,3.58614,2643.2,2642.8,0.37839]
[1727078584006,3.2078,2643.2,2642.8,0.37839]
[1727078584200,0.37831,2643.5,2642.9,0.37838]
[1727078584418,5.2678,2643.6,2643.0,0.7546]
[1727078584614,0.3783,2643.5,2643.0,0.7546]
[1727078585112,2.43832,2643.4,2643.0,0.7546]
[1727078585316,0.37834,2643.2,2643.0,0.7546]
[1727078585714,0.37836,2643.1,2643.0,0.7546]
[1727078586013,0.37836,2643.1,2642.7,0.365]
[1727078587915,0.37837,2643.0,2642.7,0.365]
[1727078588113,2.06,2643.2,2642.7,0.365]
[1727078588330,0.37838,2643.0,2642.7,0.365]
[1727078588705,0.37839,2642.9,2642.7,0.365]
[1727078588912,0.37838,2643.0,2642.7,0.365]
[1727078589413,3.2078,2643.1,2642.7,0.365]
[1727078589414,3.58616,2643.1,2642.7,0.365]
[1727078590419,0.37837,2643.0,2642.7,0.365]
[1727078590813,3.2078,2643.4,2642.7,9.4168]
[1727078591117,0.37833,2643.3,2642.8,0.3784]
[1727078591520,3.58612,2643.4,2642.9,40.8]
[1727078592017,3.2078,2643.4,2643.0,0.7377]
[1727078592614,0.37834,2643.3,2643.0,0.7377]
[1727078592818,0.37835,2643.2,2643.0,0.7377]
[1727078593420,5.2678,2643.4,2643.0,0.7377]
[1727078593621,0.37836,2643.1,2643.0,0.7377]
[1727078594013,0.37835,2643.2,2643.0,0.7377]
[1727078594318,0.37834,2643.3,2643.0,0.7377]
[1727078594621,5.2678,2643.4,2643.0,0.7377]
[1727078595415,0.37835,2643.2,2643.0,0.7377]
[1727078595614,5.2678,2643.4,2643.0,0.7377]
[1727078595827,3.2078,2643.4,2643.0,0.7377]
[1727078596028,0.37835,2643.2,2643.0,0.7377]
[1727078596524,0.37833,2643.3,2643.0,0.7377]
[1727078596733,3.58612,2643.4,2643.0,0.7377]
[1727078597026,0.37833,2643.3,2643.0,0.7377]
[1727078598319,0.37836,2643.1,2643.0,0.7377]
[1727078600123,3.2078,2643.4,2643.0,0.7377]
[1727078600425,0.37836,2643.1,2643.0,41.5377]
[1727078601230,0.37836,2643.1,2643.0,0.7377]
[1727078603528,6.991,2643.1,2642.7,0.365]
[1727078603724,0.37839,2642.9,2642.5,0.3938]
[1727078603930,3.2078,2643.1,2642.5,0.7765]
[1727078604138,3.2078,2643.1,2642.7,0.37841]
[1727078604139,3.58616,2643.1,2642.7,0.37841]
[1727078604439,0.37837,2643.0,2642.6,41.17842]
[1727078604736,3.2078,2643.1,2642.7,0.75391]
[1727078604737,3.58617,2643.1,2642.7,0.75391]
[1727078604936,0.37837,2643.1,2642.7,0.75391]
[1727078605343,0.37837,2643.0,2642.7,0.3755]
[1727078605540,2.4571,2643.3,2642.7,0.3755]
[1727078605838,0.37835,2643.2,2642.8,0.3784]
[1727078606040,0.3971,2643.3,2642.7,0.3755]
[1727078606239,0.37832,2643.4,2642.8,2.06]
[1727078606541,0.37833,2643.3,2643.0,0.37837]
[1727078606738,0.37833,2643.3,2643.1,0.7784]
[1727078607334,0.37834,2643.2,2643.1,0.7784]
[1727078607535,0.37834,2643.3,2643.1,0.7784]
[1727078607734,0.37834,2643.2,2643.1,0.7784]
[1727078607940,3.58614,2643.2,2643.1,0.7784]
[1727078609438,3.58614,2643.2,2643.1,0.3897]
[1727078610036,0.37836,2643.1,2643.0,0.1081]
[1727078610234,2.43836,2643.1,2643.0,0.1081]
[1727078610449,3.76676,2643.1,2643.0,0.1081]
[1727078613151,2.43836,2643.1,2643.0,0.1081]
[1727078614740,3.2078,2643.2,2643.0,0.1081]
[1727078614741,3.58615,2643.2,2643.0,0.1081]
[1727078615344,0.37835,2643.2,2643.1,0.3864]
[1727078616053,3.58615,2643.2,2643.1,0.3864]
[1727078616850,3.5861,2643.5,2643.1,0.3864]
[1727078617151,3.5861,2643.5,2643.2,0.3707]
[1727078617152,0.37832,2643.4,2643.2,0.3707]
[1727078617351,3.2078,2643.5,2643.2,0.3707]
[1727078617850,0.37833,2643.3,2643.2,0.3707]
[1727078618243,2.06,2643.4,2643.2,0.3707]
[1727078618451,0.37833,2643.3,2643.2,0.3707]
[1727078620349,0.76823,2643.3,2643.2,0.3707]
[1727078621750,0.76823,2643.3,2642.8,0.361]
[1727078621751,0.94587,2643.2,2642.8,0.361]
[1727078622054,0.37839,2642.9,2642.8,1.123]
[1727078622750,0.37836,2643.1,2642.8,1.123]
[1727078623855,2.06,2643.2,2642.8,1.123]
[1727078624059,0.37837,2643.1,2642.8,1.123]
[1727078624853,2.06,2643.2,2642.8,1.50139]
[1727078625053,0.37836,2643.1,2642.8,1.50139]
[1727078625453,0.37836,2643.1,2642.8,2.10981795]
[1727078626451,0.37836,2643.1,2642.8,2.48821795]
[1727078626658,2.43835,2643.2,2642.8,2.48821795]
[1727078627056,0.37836,2643.1,2642.8,2.10981795]
[1727078627459,0.37836,2643.1,2642.9,0.98681795]
[1727078627760,0.37835,2643.2,2642.9,0.98681795]
[1727078627949,0.37836,2643.1,2642.9,0.98681795]
[1727078628359,0.37836,2643.1,2643.0,2.30959601]
[1727078628560,0.37836,2643.1,2643.0,0.98681795]
[1727078628856,0.37836,2643.1,2643.0,2.31273901]
[1727078629049,0.37836,2643.1,2643.0,0.98681795]
[1727078630353,15.2771,2643.1,2642.6,0.99218254]
[1727078630558,0.37844,2642.5,2642.4,1.47812079]
[1727078630756,0.37844,2642.5,2642.4,2.80430305]
[1727078631248,0.37844,2642.5,2642.4,1.32618226]
[1727078631651,0.37844,2642.5,2642.4,2.80430305]
[1727078632058,4.16244,2642.5,2642.4,1.32618226]
[1727078632260,4.16244,2642.5,2642.4,2.31784231]
[1727078632562,4.16244,2642.5,2642.4,0.992002]
[1727078632755,0.37844,2642.5,2642.4,0.992002]
[1727078633767,4.16244,2642.5,2642.4,0.992002]
[1727078634672,0.37844,2642.5,2642.4,0.992002]
[1727078634961,4.16244,2642.5,2642.4,0.992002]
[1727078635152,0.37844,2642.5,2642.4,0.992002]
[1727078635348,0.37844,2642.5,2642.3,2.21942079]
[1727078635349,4.16244,2642.5,2642.3,1.733302]
[1727078635552,0.37844,2642.5,2642.3,1.733302]
[1727078635955,3.2078,2642.7,2642.3,1.733302]
[1727078636151,3.2078,2642.7,2642.5,0.992002]
[1727078636353,3.58622,2642.7,2642.5,0.992002]
[1727078636553,3.2078,2642.7,2642.6,0.3657]
[1727078636950,0.3835,2643.1,2642.7,0.37841]
[1727078637263,2.43832,2643.4,2643.0,0.37837]
[1727078637469,2.43832,2643.4,2643.1,1.35659884]
[1727078637965,0.37833,2643.3,2643.1,1.35659884]
[1727078638265,0.37833,2643.3,2643.2,0.99089884]
[1727078638461,2.43832,2643.4,2643.2,0.99089884]
[1727078638667,6.22152,2643.4,2643.1,1.35659884]
[1727078638961,2.43832,2643.4,2643.1,1.35659884]
[1727078639159,2.06,2643.2,2643.1,1.35659884]
[1727078639366,2.43834,2643.2,2643.1,1.35659884]
[1727078639560,2.43834,2643.2,2643.1,0.3657]
[1727078639959,5.64614,2643.2,2643.1,0.3657]
[1727078640861,0.37836,2643.1,2643.0,0.99089884]
[1727078641061,5.2678,2643.2,2642.9,0.99089884]
[1727078641062,0.37837,2643.0,2642.9,0.99089884]
[1727078641268,0.37839,2642.9,2642.8,2.14089884]
[1727078641562,0.37839,2642.9,2642.8,3.08462836]
[1727078641766,0.37839,2642.9,2642.8,3.57185031]
[1727078641957,0.3784,2642.8,2642.7,0.99040323]
[1727078642160,0.37841,2642.7,2642.6,1.74220323]
[1727078642368,2.06,2642.7,2642.6,0.7518]
[1727078642559,5.64619,2642.9,2642.6,1.74220323]
[1727078642966,5.2678,2642.9,2642.6,2.12063323]
[1727078643259,2.43835,2643.2,2642.7,2.69261999]
[1727078643457,2.06,2643.2,2642.8,2.31419065]
[1727078643663,3.569,2643.3,2643.0,0.99040323]
[1727078643858,3.569,2643.3,2643.1,0.7615]
[1727078644163,0.37834,2643.2,2643.1,0.7615]
[1727078644366,2.43834,2643.2,2643.1,0.7615]
[1727078644662,0.37837,2643.0,2642.7,0.99040323]
[1727078644971,2.06,2642.8,2642.6,1.36240323]
[1727078645356,0.37841,2642.7,2642.6,0.372]
[1727078646461,0.37841,2642.7,2642.6,1.36240323]
[1727078646665,3.58621,2642.7,2642.6,1.36240323]
[1727078646867,3.58621,2642.7,2642.6,0.372]
[1727078647262,7.37021,2642.7,2642.6,0.372]
[1727078647463,0.37844,2642.5,2642.4,0.99040323]
[1727078647657,2.43844,2642.5,2642.4,0.99040323]
[1727078647859,12.22244,2642.5,2642.4,0.99040323]
[1727078648065,12.22244,2642.5,2642.1,1.97430654]
[1727078648066,12.79012,2642.5,2642.1,0.99040323]
[1727078648266,2.43849,2642.2,2642.1,0.99040323]
[1727078648459,2.43849,2642.2,2642.0,0.99040323]
[1727078648460,0.3785,2642.1,2642.0,0.99040323]
[1727078648771,3.5863,2642.1,2642.0,0.99040323]
[1727078649268,3.58631,2642.1,2641.9,41.79040323]
[1727078649463,3.58631,2642.1,2641.9,40.8]
[1727078650260,0.37852,2642.0,2641.9,40.8]
[1727078650465,3.58631,2642.1,2641.9,40.8]
[1727078650766,2.06,2642.2,2641.9,41.79040323]
[1727078650969,3.2078,2642.1,2641.9,41.79040323]
[1727078651278,3.2078,2642.1,2641.9,40.8]
[1727078652072,3.58631,2642.1,2641.9,40.8]
[1727078652263,0.37853,2641.9,2641.8,1.75660323]
[1727078652456,5.8456,2641.9,2641.6,1.37020323]
[1727078652663,2.43854,2641.9,2641.6,0.99040323]
[1727078652868,2.06,2641.9,2641.7,40.8]
[1727078653263,0.75903,2642.0,2641.8,0.3641]
[1727078654071,0.37856,2641.7,2641.6,0.99040323]
[1727078654265,0.37856,2641.7,2641.5,0.3797]
[1727078654475,0.37856,2641.7,2641.6,40.8]
[1727078654770,3.58635,2641.8,2641.5,0.3797]
[1727078655370,0.37856,2641.7,2641.5,0.3797]
[1727078655762,3.2078,2641.8,2641.5,0.3797]
[1727078655763,0.37857,2641.6,2641.5,0.3797]
[1727078655968,3.2078,2641.8,2641.5,0.3797]
[1727078656172,0.37857,2641.7,2641.5,0.3797]
[1727078656767,0.37857,2641.6,2641.5,0.3797]
[1727078657567,4.16417,2641.6,2641.5,0.3797]
[1727078657768,4.1658,2641.6,2641.2,3.2078]
[1727078657976,0.3802,2641.6,2641.2,0.37863]
[1727078658169,0.75877,2641.6,2641.1,2.14674323]
[1727078658365,0.75877,2641.6,2641.1,1.15634]
[1727078659374,0.37859,2641.5,2641.1,0.7777]
[1727078659672,0.3786,2641.4,2641.1,0.7777]
[1727078659868,3.5864,2641.5,2641.1,0.7777]
[1727078660468,3.2078,2641.5,2641.1,1.15634]
[1727078661073,3.58639,2641.5,2641.1,1.15634]
[1727078661576,3.58639,2641.5,2641.1,0.7777]
[1727078662665,0.37862,2641.3,2641.1,0.7777]
[1727078663274,2.43861,2641.4,2641.1,0.7777]
[1727078663476,2.06,2641.4,2641.1,0.7777]
[1727078663671,2.43861,2641.4,2641.1,0.7777]
[1727078664091,0.37862,2641.3,2641.1,0.7777]
[1727078664268,3.2078,2641.5,2641.1,0.7777]
[1727078664464,3.2078,2641.5,2641.1,3.21634]
[1727078664663,0.37858,2641.6,2641.2,0.37863]
[1727078665066,0.37859,2641.5,2641.1,1.15633]
[1727078665269,3.2078,2641.5,2641.1,0.7777]
[1727078665471,3.2078,2641.5,2641.3,0.37861]
[1727078665781,3.2078,2641.5,2641.1,0.7777]
[1727078665782,0.25916,2641.7,2641.4,0.7516]
[1727078666070,0.25916,2641.7,2641.5,0.3758]
[1727078666277,0.25916,2641.7,2641.6,0.3979]
[1727078667974,0.37855,2641.8,2641.6,0.3979]
[1727078668176,3.94409923,2642.0,2641.6,0.3979]
[1727078668570,4.32261923,2642.0,2641.6,0.77646]
[1727078668771,3.94409923,2642.0,2641.6,0.3979]
[1727078668973,2.43854,2641.9,2641.6,0.3979]
[1727078669374,3.2078,2641.8,2641.6,0.3979]
[1727078670080,0.37855,2641.8,2641.6,0.3979]
[1727078670381,2.43856,2641.7,2641.6,0.3979]
[1727078670977,0.3786,2641.5,2641.1,0.37863]
[1727078671178,0.3786,2641.5,2641.2,0.3649]
[1727078671572,0.3786,2641.5,2641.2,0.74353]
[1727078671773,0.77348,2641.6,2641.2,0.74353]
[1727078672184,0.77348,2641.6,2641.3,0.37861]
[1727078672377,0.37859,2641.5,2641.2,0.74352]
[1727078672573,0.3786,2641.4,2641.2,0.3649]
[1727078673182,0.37861,2641.4,2641.2,0.3649]
[1727078673482,0.37859,2641.5,2641.2,0.3649]
[1727078673976,0.3786,2641.4,2641.2,0.3649]
[1727078674178,0.3949,2641.6,2641.2,0.3649]
[1727078674474,0.37863,2641.2,2641.1,0.7415]
[1727078674675,0.37862,2641.3,2641.1,0.7415]
[1727078675575,0.77349,2641.6,2641.1,1.12014]
[1727078676083,0.77349,2641.6,2641.2,0.37862]
[1727078676288,0.77349,2641.6,2641.2,0.37863]
[1727078676289,0.77348,2641.6,2641.2,0.37863]
[1727078676492,0.37858,2641.6,2641.2,0.37863]
[1727078678979,3.58637,2641.7,2641.1,0.7415]
[1727078679678,3.58637,2641.7,2641.3,0.37861]
[1727078679887,3.58637,2641.7,2641.4,0.3826]
[1727078680079,4.348,2642.0,2641.4,0.3826]
[1727078680276,0.758,2642.8,2641.4,0.3826]
[1727078680277,0.37842,2642.7,2641.9,5.2678]
[1727078680476,0.37842,2642.7,2641.5,14.00959235]
[1727078680477,2.06,2642.7,2642.4,0.98524504]
[1727078680776,5.2678,2642.7,2642.0,4.98454504]
[1727078681074,5.64622,2642.7,2642.1,0.98524504]
[1727078681277,5.2678,2642.7,2642.1,0.98524504]
[1727078681882,2.06,2642.5,2642.0,4.98454504]
[1727078682378,0.3617,2642.4,2642.0,4.98454504]
[1727078682578,2.06,2642.2,2642.0,0.3945]
[1727078683282,2.06,2642.2,2641.8,0.98524504]
[1727078683587,2.06,2642.2,2641.9,3.2078]
[1727078684083,2.4217,2642.4,2641.9,3.2078]
[1727078684280,2.4217,2642.4,2641.9,4.19304504]
[1727078684481,2.06,2642.2,2641.9,0.98524504]
[1727078684683,0.7691,2642.1,2641.8,0.98524504]
[1727078684878,0.7691,2642.1,2641.7,1.37994504]
[1727078685081,0.3676,2642.0,2641.7,1.37994504]
[1727078685284,0.3676,2642.0,2641.8,0.98524504]
[1727078685682,2.4276,2642.0,2641.8,0.98524504]
[1727078685886,2.4276,2642.0,2641.7,0.98524504]
[1727078686179,2.4276,2642.0,2641.6,4.19304504]
[1727078687379,6.2132,2642.0,2641.6,0.98524504]
[1727078687587,2.06,2641.7,2641.4,0.98524504]
[1727078687985,2.4276,2642.0,2641.4,1.36384504]
[1727078688193,2.4276,2642.0,2641.5,0.3756]
[1727078688489,2.4276,2642.0,2641.5,1.36084504]
[1727078688892,2.80612,2642.0,2641.5,1.36084504]
[1727078689290,4.634,2641.9,2641.5,1.36084504]
[1727078689987,4.634,2641.9,2641.6,0.98524504]
[1727078690189,0.3676,2642.0,2641.7,0.3857]
[1727078690381,0.3676,2642.0,2641.8,0.37854]
[1727078690786,0.3676,2642.0,2641.9,0.369]
[1727078692493,0.37848,2642.3,2641.9,1.35424504]
[1727078692694,0.394,2642.2,2641.9,1.35424504]
[1727078693994,0.394,2642.2,2641.9,1.73276504]
[1727078694192,0.394,2642.2,2642.0,0.98524504]
[1727078694492,0.394,2642.2,2642.0,1.36375504]
[1727078694798,7.8418,2642.5,2642.1,1.36374504]
[1727078695098,8.2069,2642.5,2642.2,1.35754504]
[1727078695488,8.2069,2642.5,2642.2,0.3723]
[1727078696019,8.2069,2642.5,2642.2,0.75079]
[1727078697198,8.2069,2642.5,2642.2,0.3723]
[1727078697401,10.2669,2642.5,2642.2,0.3723]
[1727078698389,10.2669,2642.5,2642.1,0.98524504]
[1727078698590,10.2669,2642.5,2642.1,1.36373504]
[1727078700401,10.2669,2642.5,2642.2,0.37848]
[1727078700594,10.2669,2642.5,2642.1,0.98524504]
[1727078700795,0.3651,2642.5,2642.1,0.98524504]
[1727078701011,2.43837,2643.0,2642.6,0.37842]
[1727078701191,0.3999,2643.0,2642.7,0.76]
[1727078701405,0.3999,2643.0,2642.7,1.13841]
[1727078701599,0.3999,2643.0,2642.7,0.76]
[1727078701902,0.3999,2643.0,2642.8,0.3784]
[1727078702501,0.3999,2643.0,2642.7,2.12364504]
[1727078702696,0.3999,2643.0,2642.7,1.1384]
[1727078703806,0.3999,2643.0,2642.8,0.37839]
[1727078704003,0.37835,2643.2,2642.8,0.37839]
[1727078704203,0.77425,2643.2,2642.8,0.37839]
[1727078704506,0.37836,2643.1,2642.7,1.13841]
[1727078705810,3.58616,2643.1,2642.7,1.13841]
[1727078706717,2.06,2642.9,2642.7,0.3615]
[1727078707012,2.06,2642.9,2642.5,3.6073]
[1727078707013,0.37842,2642.7,2642.5,3.6073]
[1727078707610,0.3814,2642.8,2642.5,3.98574]
[1727078708018,0.75981,2642.8,2642.5,0.3995]
[1727078708218,0.75981,2642.8,2642.5,3.6073]
[1727078710222,0.37842,2642.7,2642.5,3.6073]
[1727078711017,0.37842,2642.7,2642.4,0.3798]
[1727078711018,2.06,2642.7,2642.3,0.3757]
[1727078711212,0.7598,2642.8,2642.4,0.76645]
[1727078711614,0.3814,2642.8,2642.4,0.76645]
[1727078711915,0.75981,2642.8,2642.4,0.76645]
[1727078712717,0.37842,2642.7,2642.4,0.388]
[1727078712912,0.3814,2642.8,2642.4,0.388]
[1727078713126,2.06,2642.7,2642.4,0.388]
[1727078713341,2.43844,2642.5,2642.3,0.3757]
[1727078713825,2.06,2642.5,2642.3,0.3757]
[1727078714021,0.37844,2642.6,2642.3,0.3757]
[1727078714726,0.37845,2642.5,2642.3,0.3757]
[1727078716219,0.76896,2642.4,2642.3,0.3757]
[1727078717831,0.69436,2642.4,2642.3,0.3757]
[1727078718626,0.37847,2642.3,2642.2,0.5022]
[1727078718829,0.69436,2642.4,2642.2,0.5022]
[1727078719030,0.3159,2642.4,2642.2,0.5022]
[1727078719323,0.94597,2642.9,2642.2,0.5022]
[1727078719324,6.0303,2643.0,2642.2,2.5622]
[1727078719516,10.2383,2643.0,2642.2,2.5622]
[1727078719722,0.37839,2642.9,2642.5,0.37844]
[1727078719921,8.17918,2643.0,2642.6,0.7714]
[1727078720129,0.37838,2643.0,2642.6,1.51533]
[1727078720735,0.37838,2643.0,2642.6,1.1369]
[1727078721236,0.37838,2643.0,2642.6,1.51533]
[1727078721728,0.37839,2642.9,2642.6,1.51533]
[1727078722129,0.37839,2642.9,2642.6,1.1369]
[1727078722931,3.2078,2643.3,2642.8,3.2078]
[1727078723224,3.2078,2643.6,2643.0,3.04524504]
[1727078723429,0.3783,2643.5,2643.2,0.37834]
[1727078723626,3.58609,2643.6,2643.2,0.37834]
[1727078723929,0.3783,2643.5,2643.2,0.37834]
[1727078724526,0.3783,2643.5,2643.2,1.36358504]
[1727078724732,3.5861,2643.6,2643.3,0.37833]
[1727078724930,0.3783,2643.5,2643.2,1.36358504]
[1727078725332,0.3783,2643.5,2643.2,0.37834]
[1727078726127,0.37832,2643.4,2643.2,0.98524504]
[1727078726329,0.37831,2643.5,2643.2,0.37834]
[1727078727431,0.37832,2643.4,2643.2,0.37834]
[1727078727633,0.37832,2643.4,2643.1,5.72629504]
[1727078727830,0.37834,2643.3,2643.1,0.7577]
[1727078728829,0.37834,2643.2,2643.1,0.7577]
[1727078729132,0.37834,2643.3,2643.1,0.7577]
[1727078729531,0.37834,2643.2,2643.1,0.7577]
[1727078729932,0.37834,2643.3,2643.1,0.7577]
[1727078730326,0.37834,2643.2,2643.1,0.7577]
[1727078730935,0.76364,2643.3,2643.1,0.7577]
[1727078731132,3.2078,2643.6,2643.1,3.9655]
[1727078731434,3.2078,2643.6,2643.4,0.37831]
[1727078731633,0.37825,2643.9,2643.5,3.5721]
[1727078731832,0.37825,2643.9,2643.6,0.75558]
[1727078732033,0.37825,2643.9,2643.6,0.3773]
[1727078732329,9.42401,2644.2,2643.6,0.3773]
[1727078732330,1.1437,2644.2,2643.6,0.3773]
[1727078732532,2.06,2644.4,2643.7,0.3923]
[1727078732730,0.37822,2644.1,2643.7,0.77057]
[1727078732931,0.6844,2644.3,2643.7,0.77057]
[1727078733331,3.58601,2644.2,2643.7,0.3923]
[1727078733526,0.37822,2644.1,2643.7,0.3923]
[1727078733727,0.37822,2644.1,2643.7,0.77056]
[1727078734041,3.58601,2644.2,2643.8,30.37825]
[1727078734625,3.2078,2644.2,2643.9,0.37824]
[1727078735029,3.2078,2644.2,2644.0,0.3634]
[1727078735237,3.2078,2644.2,2644.1,0.3738]
[1727078735437,3.586,2644.2,2644.1,0.3738]
[1727078735736,3.2078,2644.2,2644.1,0.3738]
[1727078735924,3.586,2644.2,2644.1,0.3738]
[1727078736330,0.3782,2644.2,2644.1,0.3738]
[1727078737337,3.73989759,2644.5,2644.1,0.75201]
[1727078737633,3.58597,2644.5,2644.1,0.75201]
[1727078737833,3.58597,2644.5,2644.1,0.3738]
[1727078738026,3.58597,2644.5,2644.1,0.75201]
[1727078738229,3.58597,2644.5,2644.1,0.3738]
[1727078738833,0.37818,2644.4,2644.1,0.3738]
[1727078739223,3.58596,2644.5,2644.1,0.3738]
[1727078739733,0.37817,2644.4,2644.1,0.3738]
[1727078740538,3.2078,2644.5,2644.1,0.3738]
[1727078740745,3.586,2644.2,2644.1,0.3738]
[1727078741632,0.3782,2644.2,2644.1,0.3738]
[1727078741826,0.37821,2644.1,2643.8,3.2078]
[1727078742031,3.2078,2644.2,2643.8,3.6058]
[1727078742228,0.37824,2644.0,2643.8,3.6058]
[1727078742433,0.37824,2643.9,2643.8,0.398]
[1727078742636,0.37827,2643.7,2643.2,4.1926276]
[1727078742936,5.2678,2643.9,2643.4,0.398]
[1727078743139,0.3783,2643.5,2643.4,0.398]
[1727078745343,3.95859,2643.6,2643.4,0.398]
[1727078745852,3.5803,2643.6,2643.4,0.398]
[1727078746143,3.2078,2643.6,2643.4,0.398]
[1727078747036,0.37828,2643.7,2643.4,0.398]
[1727078747242,0.37826,2643.8,2643.4,0.398]
[1727078747439,0.37827,2643.7,2643.4,2.458]
[1727078747845,0.31066,2643.8,2643.4,2.458]
[1727078748143,0.3979,2644.0,2643.5,0.3783]
[1727078748336,0.37824,2644.0,2643.5,0.3783]
[1727078748534,0.37824,2644.0,2643.5,3.2078]
[1727078748842,4.127,2644.2,2643.5,3.2078]
[1727078749139,0.37825,2643.9,2643.5,3.2078]
[1727078750648,0.37824,2644.0,2643.5,3.5861]
[1727078751442,0.37824,2644.0,2643.5,0.3783]
[1727078751644,10.97624147,2644.3,2643.4,2.458]